fUST/lending_fUST_20241127
["ID","MTS","AMOUNT","RATE_DAILY","PERIOD"]
[343556127,1732720444503,542.89,0.00024657,3]
[343556128,1732720444569,500.0,0.00024657,3]
[343556129,1732720444741,501.18180365,0.00024657,3]
[343556130,1732720444814,542.89,0.00024657,3]
[343556131,1732720445043,542.89,0.00024657,3]
[343556132,1732720445296,542.89,0.00024657,3]
[343556133,1732720445589,542.89,0.00024657,3]
[343556134,1732720445879,542.89,0.00024657,3]
[343556135,1732720446222,542.89,0.00024657,3]
[343556136,1732720446483,542.89,0.00024657,3]
[343556137,1732720446807,542.89,0.00024657,3]
[343556138,1732720447067,542.89,0.00024657,3]
[343556139,1732720447334,542.89,0.00024657,3]
[343556140,1732720447435,500.0,0.00024657,3]
[343556141,1732720447618,542.89,0.00024657,3]
[343556142,1732720447706,248.02066251,0.00024657,3]
[343556143,1732720447895,542.89,0.00024657,3]
[343556144,1732720448181,542.89,0.00024657,3]
[343556145,1732720448447,542.98964339,0.00024657,3]
[343556146,1732720450134,500.0,0.00024657,3]
[343556147,1732720450513,500.0,0.00024657,3]
[343556148,1732720450777,500.0,0.00024657,3]
[343556149,1732720450842,500.0,0.00024657,3]
[343556150,1732720451028,500.0,0.00024657,3]
[343556151,1732720451086,500.0,0.00024657,3]
[343556152,1732720451353,500.0,0.00024657,3]
[343556153,1732720451601,500.0,0.00024657,3]
[343556154,1732720451762,500.0,0.00024657,3]
[343556155,1732720451820,500.0,0.00024657,3]
[343556156,1732720451919,500.0,0.00024657,3]
[343556157,1732720452092,500.0,0.00024657,3]
[343556158,1732720452244,500.0,0.00024657,3]
[343556159,1732720452350,500.0,0.00024657,3]
[343556160,1732720452495,500.0,0.00024657,3]
[343556161,1732720452551,500.0,0.00024657,3]
[343556162,1732720452619,500.0,0.00024657,3]
[343556163,1732720452820,500.0,0.00024657,3]
[343556164,1732720452879,500.0,0.00024657,3]
[343556165,1732720452935,500.0,0.00024657,3]
[343556166,1732720453097,500.0,0.00024657,3]
[343556167,1732720453163,500.0,0.00024657,3]
[343556168,1732720453223,354.35790835,0.00024657,3]
[343556169,1732720453400,500.0,0.00024657,3]
[343556170,1732720453460,500.0,0.00024657,3]
[343556171,1732720453669,500.0,0.00024657,3]
[343556172,1732720453725,500.0,0.00024657,3]
[343556173,1732720453919,500.0,0.00024657,3]
[343556174,1732720453975,500.0,0.00024657,3]
[343556175,1732720454216,500.0,0.00024657,3]
[343556176,1732720454332,500.0,0.00024657,3]
[343556177,1732720454499,500.0,0.00024657,3]
[343556178,1732720454596,500.0,0.00024657,3]
[343556179,1732720454756,500.0,0.00024657,3]
[343556180,1732720454862,490.37042968,0.00024657,3]
[343556181,1732720455176,502.36466933,0.00024657,3]
[343556182,1732720455326,589.6,0.00024657,3]
[343556183,1732720455424,500.0,0.00024657,3]
[343556184,1732720455667,500.0,0.00024657,3]
[343556185,1732720455726,500.0,0.00024657,3]
[343556186,1732720455931,500.0,0.00024657,3]
[343556187,1732720455990,500.0,0.00024657,3]
[343556188,1732720456178,500.0,0.00024657,3]
[343556189,1732720456449,500.0,0.00024657,3]
[343556190,1732720456796,500.0,0.00024657,3]
[343556191,1732720457082,500.0,0.00024657,3]
[343556192,1732720457328,501.94748228,0.00024657,3]
[343556193,1732720457397,572.6458986,0.00024657,3]
[343556194,1732720459350,500.0,0.00024657,3]
[343556195,1732720459563,503.34898009,0.00024657,3]
[343556196,1732720459629,500.0,0.00024657,3]
[343556197,1732720459893,500.0,0.00024657,3]
[343556198,1732720460206,500.0,0.00024657,3]
[343556199,1732720460535,500.0,0.00024657,3]
[343556200,1732720460839,624.12047551,0.00024657,3]
[343556201,1732720461961,257.49202024,0.00024657,3]
[343556202,1732720462074,500.0,0.00024657,3]
[343556203,1732720463994,501.88802209,0.00024657,3]
[343556204,1732720464411,187.48288708,0.00024657,3]
[343556205,1732720465388,500.0,0.00024657,3]
[343556206,1732720467729,500.0,0.00024657,3]
[343556207,1732720468004,500.0,0.00024657,3]
[343556208,1732720468257,581.04309791,0.00024657,3]
[343556209,1732720469144,501.99556465,0.00024657,3]
[343556210,1732720471916,500.0,0.00024657,3]
[343556211,1732720471974,500.0,0.00024657,3]
[343556212,1732720472294,500.0,0.00024657,3]
[343556213,1732720472803,500.0,0.00024657,3]
[343556214,1732720472925,500.0,0.00024657,3]
[343556215,1732720473317,500.0,0.00024657,3]
[343556216,1732720473672,500.0,0.00024657,3]
[343556217,1732720473877,508.64216447,0.00024657,3]
[343556218,1732720475939,500.0,0.00024657,3]
[343556219,1732720476204,500.0,0.00024657,3]
[343556220,1732720476514,409.32671763,0.00024657,3]
[343556221,1732720478409,500.0,0.00024657,3]
[343556222,1732720479407,916.87,0.00024657,3]
[343556223,1732720480309,500.0,0.00024657,3]
[343556224,1732720480679,500.0,0.00024657,3]
[343556225,1732720480976,500.0,0.00024657,3]
[343556226,1732720481247,503.24469295,0.00024657,3]
[343556227,1732720481306,500.0,0.00024657,2]
[343556228,1732720481616,543.14738462,0.00024657,3]
[343556229,1732720483210,284.98607674,0.00024657,3]
[343556230,1732720483916,504.00958351,0.00024657,3]
[343556231,1732720486949,500.0,0.00024657,3]
[343556232,1732720487208,240.68625509,0.00024657,3]
[343556233,1732720488264,500.0,0.00024657,3]
[343556234,1732720488822,500.0,0.00024657,3]
[343556235,1732720489131,500.0,0.00024657,3]
[343556236,1732720489425,500.0,0.00024657,3]
[343556237,1732720489543,500.0,0.00024657,3]
[343556238,1732720489739,500.0,0.00024657,3]
[343556239,1732720489865,504.57246047,0.00024657,3]
[343556240,1732720490010,500.0,0.00024657,3]
[343556241,1732720490313,500.0,0.00024657,3]
[343556242,1732720490589,500.0,0.00024657,3]
[343556243,1732720490880,500.0,0.00024657,3]
[343556244,1732720491230,500.0,0.00024657,3]
[343556245,1732720491690,500.0,0.00024657,3]
[343556246,1732720491959,500.0,0.00024657,3]
[343556247,1732720492011,640.55488384,0.00024657,3]
[343556248,1732720492228,500.0,0.00024657,3]
[343556249,1732720492514,500.0,0.00024657,3]
[343556250,1732720492568,500.0,0.00024657,3]
[343556251,1732720492797,500.0,0.00024657,3]
[343556252,1732720492855,500.0,0.00024657,3]
[343556253,1732720492914,500.0,0.00024657,3]
[343556254,1732720493088,502.77617771,0.00024657,3]
[343556255,1732720493142,500.0,0.00024657,3]
[343556256,1732720493365,621.67519677,0.00024657,3]
[343556257,1732720493766,552.71971276,0.00024657,3]
[343556258,1732720495462,500.0,0.00024657,3]
[343556259,1732720495615,500.0,0.00024657,3]
[343556260,1732720495865,506.72067356,0.00024657,3]
[343556261,1732720497472,500.0,0.00024657,3]
[343556262,1732720497740,536.64071743,0.00024657,3]
[343556263,1732720498084,500.0,0.00024657,3]
[343556264,1732720498357,500.0,0.00024657,3]
[343556265,1732720498617,548.84854881,0.00024657,3]
[343556266,1732720498702,500.0,0.00024657,3]
[343556267,1732720499021,510.80688555,0.00024657,3]
[343556268,1732720500064,200.0,0.00024657,3]
[343556269,1732720500427,200.0,0.00024657,3]
[343556270,1732720501112,200.0,0.00024657,3]
[343556271,1732720501632,200.0,0.00024657,3]
[343556272,1732720501923,200.0,0.00024657,3]
[343556273,1732720502228,200.0,0.00024657,3]
[343556274,1732720502503,200.0,0.00024657,3]
[343556275,1732720502573,500.0,0.00024657,3]
[343556276,1732720502782,200.0,0.00024657,3]
[343556277,1732720502906,500.0,0.00024657,3]
[343556278,1732720503061,200.0,0.00024657,3]
[343556279,1732720503235,500.0,0.00024657,3]
[343556280,1732720503486,200.0,0.00024657,3]
[343556281,1732720503558,515.61153176,0.00024657,3]
[343556282,1732720504093,200.0,0.00024657,3]
[343556283,1732720504393,200.0,0.00024657,3]
[343556284,1732720504651,200.0,0.00024657,3]
[343556285,1732720504944,200.0,0.00024657,3]
[343556286,1732720505244,200.0,0.00024657,3]
[343556287,1732720505660,200.0,0.00024657,3]
[343556288,1732720505889,200.0,0.00024657,3]
[343556289,1732720505971,501.07097184,0.00024657,3]
[343556290,1732720506032,503.0280813,0.00024657,3]
[343556291,1732720506168,200.0,0.00024657,3]
[343556292,1732720506813,287.92005143,0.00024657,3]
[343556293,1732720508094,500.0,0.00024657,3]
[343556294,1732720508440,500.0,0.00024657,3]
[343556295,1732720508680,500.0,0.00024657,3]
[343556296,1732720508748,500.0,0.00024657,3]
[343556297,1732720508948,203.00059519,0.00024657,3]
[343556298,1732720509028,630.04716064,0.00024657,3]
[343556299,1732720510176,500.0,0.00024657,3]
[343556300,1732720510707,500.0,0.00024657,3]
[343556301,1732720510971,500.0,0.00024657,3]
[343556302,1732720511329,500.0,0.00024657,3]
[343556303,1732720511404,566.38083477,0.00024657,3]
[343556304,1732720511590,500.0,0.00024657,3]
[343556305,1732720511960,500.0,0.00024657,3]
[343556306,1732720512129,500.0,0.00024657,3]
[343556307,1732720512413,500.0,0.00024657,3]
[343556308,1732720512672,507.74087558,0.00024657,3]
[343556309,1732720514092,500.0,0.00024657,3]
[343556310,1732720514681,500.0,0.00024657,3]
[343556311,1732720514953,500.0,0.00024657,3]
[343556312,1732720515241,588.6144559,0.00024657,3]
[343556313,1732720516468,500.0,0.00024657,3]
[343556314,1732720516806,500.0,0.00024657,3]
[343556315,1732720517010,502.67639244,0.00024657,3]
[343556316,1732720517083,500.0,0.00024657,3]
[343556317,1732720517364,500.0,0.00024657,3]
[343556318,1732720517627,500.0,0.00024657,3]
[343556319,1732720517881,500.0,0.00024657,3]
[343556320,1732720518163,500.0,0.00024657,3]
[343556321,1732720518426,500.0,0.00024657,3]
[343556322,1732720518704,519.73361122,0.00024657,3]
[343556323,1732720518967,526.39119397,0.00024657,3]
[343556324,1732720520950,510.65348358,0.00024657,3]
[343556325,1732720522138,500.0,0.00024657,3]
[343556326,1732720523327,500.0,0.00024657,3]
[343556327,1732720523625,500.0,0.00024657,3]
[343556328,1732720523873,500.0,0.00024657,3]
[343556329,1732720523936,500.0,0.00024657,3]
[343556330,1732720524119,597.26282939,0.00024657,3]
[343556331,1732720524174,514.98732028,0.00024657,3]
[343556332,1732720526214,500.0,0.00024657,3]
[343556333,1732720526534,500.0,0.00024657,3]
[343556334,1732720526799,500.0,0.00024657,3]
[343556335,1732720527085,500.0,0.00024657,3]
[343556336,1732720527368,354.32025288,0.00024657,3]
[343556337,1732720528832,500.0,0.00024657,3]
[343556338,1732720529105,500.0,0.00024657,3]
[343556339,1732720529383,552.37513395,0.00024657,3]
[343556340,1732720531667,500.0,0.00024657,2]
[343556341,1732720531920,324.41381404,0.00024657,2]
[343556342,1732720532913,514.53310945,0.00024657,3]
[343556343,1732720533303,500.0,0.00024657,2]
[343556344,1732720533552,500.0,0.00024657,2]
[343556345,1732720533813,501.28060334,0.00024657,2]
[343556346,1732720534216,500.0,0.00024657,3]
[343556347,1732720534509,543.89696138,0.00024657,3]
[343556348,1732720538067,500.0,0.00024657,3]
[343556349,1732720538202,532.29730274,0.00024657,3]
[343556350,1732720540770,500.0,0.00024657,3]
[343556351,1732720541175,500.0,0.00024657,3]
[343556352,1732720541440,574.83380406,0.00024657,3]
[343556353,1732720543430,500.0,0.00024657,3]
[343556354,1732720543498,406.39870849,0.00024657,3]
[343556355,1732720543691,500.0,0.00024657,3]
[343556356,1732720543975,500.0,0.00024657,3]
[343556357,1732720544207,500.0,0.00024657,3]
[343556358,1732720544271,416.29,0.00024657,3]
[343556359,1732720544340,502.40778284,0.00024657,3]
[343556360,1732720544475,500.0,0.00024657,3]
[343556361,1732720544732,500.0,0.00024657,3]
[343556362,1732720545003,500.0,0.00024657,3]
[343556363,1732720545088,500.0,0.00024657,3]
[343556364,1732720545359,500.0,0.00024657,3]
[343556365,1732720545645,500.0,0.00024657,3]
[343556366,1732720545899,488.38814451,0.00024657,3]
[343556367,1732720547847,500.0,0.00024657,3]
[343556368,1732720548096,500.0,0.00024657,3]
[343556369,1732720548366,500.0,0.00024657,3]
[343556370,1732720548677,500.0,0.00024657,3]
[343556371,1732720548958,628.45791079,0.00024657,3]
[343556372,1732720551662,500.0,0.00024657,3]
[343556373,1732720551938,644.90139878,0.00024657,3]
[343556374,1732720553115,500.0,0.00024657,3]
[343556375,1732720553388,500.0,0.00024657,3]
[343556376,1732720553653,500.0,0.00024657,3]
[343556377,1732720553924,512.98223376,0.00024657,3]
[343556378,1732720555975,505.05503671,0.00024657,3]
[343556379,1732720556805,500.60811493,0.00024657,3]
[343556380,1732720559634,500.0,0.00024657,3]
[343556381,1732720559928,500.0,0.00024657,3]
[343556382,1732720560575,500.0,0.00024657,3]
[343556383,1732720560891,500.0,0.00024657,3]
[343556384,1732720561158,513.45782667,0.00024657,3]
[343556385,1732720566049,264.87716713,0.00024657,3]
[343556386,1732720568764,503.97835346,0.00024657,3]
[343556387,1732720569409,481.65535998,0.00024657,3]
[343556388,1732720570319,516.9097365,0.00024657,3]
[343556389,1732720575815,500.0,0.00024657,3]
[343556390,1732720576078,500.0,0.00024657,3]
[343556391,1732720576348,500.0,0.00024657,3]
[343556392,1732720576605,500.0,0.00024657,3]
[343556393,1732720576948,500.0,0.00024657,3]
[343556394,1732720577132,578.33502085,0.00024657,3]
[343556395,1732720579386,500.0,0.00024657,3]
[343556396,1732720579777,500.0,0.00024657,3]
[343556397,1732720579937,500.0,0.00024657,3]
[343556398,1732720580239,500.0,0.00024657,3]
[343556399,1732720580563,500.0,0.00024657,3]
[343556400,1732720581159,500.0,0.00024657,3]
[343556401,1732720581435,509.02328474,0.00024657,3]
[343556402,1732720585791,500.0,0.00024657,3]
[343556403,1732720588809,500.0,0.00024657,3]
[343556404,1732720589097,500.0,0.00024657,3]
[343556405,1732720589620,500.0,0.00024657,3]
[343556406,1732720590235,500.0,0.00024657,3]
[343556407,1732720590551,500.0,0.00024657,3]
[343556408,1732720590836,500.0,0.00024657,3]
[343556409,1732720591127,163.53832146,0.00024657,3]
[343556410,1732720598358,500.57912716,0.00024657,3]
[343556411,1732720598459,500.0,0.00024657,3]
[343556412,1732720601741,500.0,0.00024657,3]
[343556413,1732720602090,500.0,0.00024657,3]
[343556414,1732720602148,501.02392177,0.00024657,3]
[343556415,1732720602349,233.47799092,0.00024657,3]
[343556416,1732720603686,500.0,0.00024657,3]
[343556419,1732720606485,515.67968541,0.00024657,3]
[343556420,1732720611436,500.0,0.00024657,3]
[343556421,1732720611727,500.0,0.00024657,3]
[343556422,1732720612002,296.99555588,0.00024657,3]
[343556423,1732720614101,500.0,0.00024657,3]
[343556424,1732720614251,500.0,0.00024657,3]
[343556425,1732720614391,500.0,0.00024657,3]
[343556426,1732720614658,500.0,0.00024657,3]
[343556427,1732720614948,500.0,0.00024657,3]
[343556428,1732720615251,520.26205276,0.00024657,3]
[343556429,1732720616569,500.0,0.00024657,3]
[343556430,1732720616832,500.0,0.00024657,3]
[343556431,1732720617096,292.1956723,0.00024657,3]
[343556432,1732720617333,500.0,0.00024657,3]
[343556433,1732720617688,500.0,0.00024657,3]
[343556434,1732720617980,500.0,0.00024657,3]
[343556435,1732720618299,500.0,0.00024657,3]
[343556436,1732720618580,500.0,0.00024657,3]
[343556437,1732720619214,500.0,0.00024657,3]
[343556438,1732720619485,304.51141318,0.00024657,3]
[343556439,1732720628077,500.0,0.00024657,3]
[343556440,1732720628362,502.44006089,0.00024657,3]
[343556441,1732720629887,500.0,0.00024657,3]
[343556442,1732720630125,500.0,0.00024657,3]
[343556443,1732720630394,500.0,0.00024657,3]
[343556444,1732720630667,508.01281609,0.00024657,3]
[343556445,1732720632617,500.0,0.00024657,3]
[343556446,1732720632890,500.0,0.00024657,3]
[343556447,1732720633170,500.0,0.00024657,3]
[343556448,1732720633635,502.5879529,0.00024657,3]
[343556449,1732720634281,500.0,0.00024657,3]
[343556450,1732720638396,500.0,0.00024657,3]
[343556451,1732720638676,239.37883813,0.00024657,3]
[343556452,1732720641326,-661.2662937,0.000256,2]
[343556453,1732720641352,-705.129212,0.00025639,2]
[343556454,1732720641381,-250.0,0.00025938,2]
[343556455,1732720641407,-241.6,0.000261,4]
[343556456,1732720641432,-78.4044943,0.00026215,2]
[343556457,1732720642924,500.0,0.00024657,3]
[343556458,1732720643250,502.73811582,0.00024657,3]
[343556459,1732720644103,500.0,0.00024657,3]
[343556460,1732720644351,500.0,0.00024657,3]
[343556461,1732720644640,425.88,0.00024657,3]
[343556462,1732720645271,500.0,0.00024657,3]
[343556463,1732720645550,502.6046575,0.00024657,3]
[343556464,1732720646632,500.0,0.00024657,3]
[343556465,1732720648510,500.0,0.00024657,3]
[343556466,1732720648770,616.39689873,0.00024657,3]
[343556467,1732720650873,500.0,0.00024657,3]
[343556468,1732720651056,500.0,0.00024657,3]
[343556469,1732720651339,501.1296278,0.00024657,3]
[343556470,1732720651463,500.0,0.00024657,3]
[343556471,1732720657298,500.0,0.00024657,3]
[343556472,1732720661636,500.0,0.00024657,3]
[343556473,1732720661957,500.0,0.00024657,3]
[343556474,1732720662223,500.0,0.00024657,3]
[343556475,1732720662517,500.0,0.00024657,3]
[343556476,1732720662779,500.0,0.00024657,3]
[343556477,1732720663059,500.0,0.00024657,3]
[343556478,1732720663325,500.0,0.00024657,3]
[343556479,1732720663920,500.0,0.00024657,3]
[343556480,1732720664208,500.0,0.00024657,3]
[343556481,1732720664459,500.0,0.00024657,3]
[343556482,1732720665050,500.0,0.00024657,3]
[343556483,1732720665372,500.0,0.00024657,3]
[343556484,1732720665634,500.0,0.00024657,3]
[343556485,1732720665917,500.0,0.00024657,3]
[343556486,1732720666213,500.0,0.00024657,3]
[343556487,1732720666498,500.0,0.00024657,3]
[343556488,1732720666743,500.0,0.00024657,3]
[343556489,1732720666994,500.0,0.00024657,3]
[343556490,1732720667259,500.0,0.00024657,3]
[343556491,1732720667531,536.81291679,0.00024657,3]
[343556492,1732720672127,500.0,0.00024657,3]
[343556493,1732720672377,500.0,0.00024657,3]
[343556494,1732720672961,305.89402397,0.00024657,3]
[343556495,1732720679050,500.0,0.00024657,3]
[343556496,1732720679249,500.0,0.00024657,3]
[343556497,1732720679575,500.0,0.00024657,3]
[343556498,1732720679844,500.0,0.00024657,3]
[343556499,1732720680163,500.0,0.00024657,3]
[343556500,1732720680510,500.0,0.00024657,3]
[343556501,1732720680867,227.56875133,0.00024657,3]
[343556502,1732720680949,500.0,0.00024657,3]
[343556503,1732720681269,501.20018792,0.00024657,3]
[343556504,1732720683506,500.0,0.00024657,3]
[343556505,1732720683795,500.0,0.00024657,3]
[343556506,1732720688584,500.42617206,0.00024657,3]
[343556507,1732720697671,500.0,0.00024657,3]
[343556508,1732720697954,500.0,0.00024657,3]
[343556509,1732720702611,500.0,0.00024657,3]
[343556510,1732720702782,500.0,0.00024657,3]
[343556511,1732720702862,502.28905169,0.00024657,3]
[343556512,1732720703086,503.1463299,0.00024657,3]
[343556513,1732720715033,-24900.0,0.000257,2]
[343556514,1732720716213,500.0,0.00024657,3]
[343556515,1732720716599,500.0,0.00024657,3]
[343556516,1732720720601,500.0,0.00024657,3]
[343556517,1732720733388,509.42619917,0.00024657,3]
[343556518,1732720734898,163.900074,0.00013973,2]
[343556519,1732720735324,163.900074,0.00022174,2]
[343556520,1732720736441,500.0,0.00024657,3]
[343556521,1732720742275,891.39,0.00024657,3]
[343556522,1732720743114,500.0,0.00024657,2]
[343556523,1732720743403,500.0,0.00024657,2]
[343556524,1732720743688,536.79343324,0.00024657,2]
[343556525,1732720745832,500.0,0.00024657,3]
[343556526,1732720746093,500.0,0.00024657,3]
[343556527,1732720746353,500.0,0.00024657,3]
[343556528,1732720746959,500.0,0.00024657,3]
[343556529,1732720747056,503.21121974,0.00024657,3]
[343556530,1732720751341,500.0,0.00024657,3]
[343556531,1732720751615,500.0,0.00024657,3]
[343556532,1732720751883,500.0,0.00024657,3]
[343556533,1732720752164,500.0,0.00024657,3]
[343556534,1732720752467,500.0,0.00024657,3]
[343556535,1732720752721,500.0,0.00024657,3]
[343556536,1732720752999,500.0,0.00024657,3]
[343556537,1732720753263,500.0,0.00024657,3]
[343556538,1732720753520,500.0,0.00024657,3]
[343556539,1732720753872,500.0,0.00024657,3]
[343556540,1732720754153,213.91,0.00024657,3]
[343556541,1732720756485,697.39,0.00024657,3]
[343556542,1732720760650,501.58785058,0.00024657,3]
[343556543,1732720765015,501.29212102,0.00024657,3]
[343556544,1732720765854,500.0,0.00024657,3]
[343556545,1732720767036,516.36511708,0.00024657,3]
[343556546,1732720769068,517.54670694,0.00024657,3]
[343556547,1732720774088,500.0,0.00024657,3]
[343556548,1732720780030,503.09563187,0.00024657,3]
[343556549,1732720782230,500.0,0.00024657,3]
[343556550,1732720803717,692.23,0.00024657,3]
[343556551,1732720807748,200.0,0.000245,2]
[343556552,1732720811501,314.10941962,0.00024282,2]
[343556553,1732720813040,500.0,0.00024657,3]
[343556554,1732720815612,500.0,0.00024657,3]
[343556555,1732720818242,500.0,0.00024657,3]
[343556556,1732720828703,500.0,0.00024657,3]
[343556557,1732720831425,500.0,0.00024657,3]
[343556558,1732720842823,543.97,0.00024657,3]
[343556560,1732720858308,202.3553211,0.00024657,3]
[343556561,1732720860355,500.0,0.00024657,3]
[343556562,1732720869132,500.0,0.00024657,3]
[343556563,1732720871452,672.04,0.00024657,3]
[343556564,1732721027414,-302.8183302,0.00025,2]
[343556565,1732721027468,-302.8183302,0.0002525,2]
[343556566,1732721027523,-310.20547098,0.00025496,2]
[343556567,1732721027573,-302.8183302,0.000255,2]
[343556568,1732721027621,-183.54615399,0.0002565,2]
[343556569,1732721027672,-6779.8425592,0.0002565,2]
[343556570,1732721027724,-302.8183302,0.0002575,2]
[343556571,1732721027779,-183.54615398,0.000259,2]
[343556572,1732721027832,-302.8183302,0.00026,2]
[343556573,1732721027885,-221.4,0.00026101,4]
[343556574,1732721027941,-183.54615398,0.0002615,2]
[343556575,1732721027992,-7289.90773629,0.0002615,2]
[343556576,1732721028043,-256.103641,0.00026215,2]
[343556577,1732721028230,-300.0,0.00026248,2]
[343556578,1732721028290,-300.0,0.00026248,2]
[343556579,1732721028346,-22072.0,0.00026248,2]
[343556580,1732721028403,-454.2274953,0.0002625,4]
[343556581,1732721028460,-176.9,0.00026372,2]
[343556582,1732721028513,-660.0,0.00026384,2]
[343556583,1732721028569,-454.2274953,0.000265,4]
[343556584,1732721028622,-221.4,0.00026568,4]
[343556585,1732721028678,-340.56470473,0.0002662,2]
[343556586,1732721028734,-171.182876,0.00026693,2]
[343556587,1732721028789,-850.86,0.00026744,3]
[343556588,1732721028845,-500.0,0.00026744,3]
[343556589,1732721028903,-500.0,0.00026744,3]
[343556590,1732721028967,-500.0,0.00026744,3]
[343556591,1732721029025,-537.13376177,0.00026744,3]
[343556592,1732721029080,-500.68523524,0.00026744,3]
[343556593,1732721029142,-500.0,0.00026744,3]
[343556594,1732721029205,-500.0,0.00026744,3]
[343556595,1732721029268,-526.23347978,0.00026744,3]
[343556596,1732721029325,-500.0,0.00026744,3]
[343556597,1732721029383,-447.21931461,0.00026744,3]
[343556598,1732721029437,-502.36413225,0.00026744,3]
[343556599,1732721029498,-500.0,0.00026744,3]
[343556600,1732721029554,-500.0,0.00026744,3]
[343556601,1732721029616,-500.0,0.00026744,3]
[343556602,1732721029678,-523.37,0.00026744,3]
[343556603,1732721029734,-500.0,0.00026744,3]
[343556604,1732721029784,-303.80363957,0.00026747,2]
[343556605,1732721029834,-454.2274953,0.0002675,4]
[343556606,1732721029891,-310.01027355,0.00026771,2]
[343556607,1732721029943,-500.0,0.00026843,3]
[343556608,1732721029989,-412.95880808,0.00026843,3]
[343556609,1732721030035,-503.45659683,0.00026843,3]
[343556610,1732721030081,-500.0,0.00026843,3]
[343556611,1732721030126,-383.05108223,0.00026843,3]
[343556612,1732721030174,-5000.0,0.00026843,2]
[343556613,1732721030224,-500.0,0.00026843,3]
[343556614,1732721030273,-500.0,0.00026843,3]
[343556615,1732721030318,-500.0,0.00026843,3]
[343556616,1732721030363,-634.82,0.00026843,3]
[343556617,1732721030410,-500.0,0.00026843,3]
[343556618,1732721030456,-348.363,0.00026844,14]
[343556619,1732721030500,-850.86,0.00026846,3]
[343556620,1732721030544,-500.0,0.00026846,3]
[343556621,1732721030587,-500.0,0.00026846,3]
[343556622,1732721030633,-500.0,0.00026846,3]
[343556623,1732721030680,-502.25868876,0.00026846,3]
[343556624,1732721030728,-500.0,0.00026846,3]
[343556625,1732721030784,-500.0,0.00026846,3]
[343556626,1732721030828,-500.0,0.00026846,3]
[343556627,1732721030873,-500.0,0.00026846,3]
[343556628,1732721030920,-523.37,0.00026846,3]
[343556629,1732721030967,-502.22911773,0.00026846,3]